bitfinex/quotes_ETHUSD_20240710
["timestamp","ask_amount","ask_price","bid_price","bid_amount"]
[1720597664913,4.9173467,3099.0,3098.0,2.2508]
[1720597665119,4.9173467,3098.9,3098.0,2.2508]
[1720597665416,1.11842017,3098.8,3098.0,2.2508]
[1720597665707,0.55,3099.2,3098.0,2.2508]
[1720597665915,1.91756463,3099.1,3098.0,2.2508]
[1720597666117,1.91756463,3099.0,3098.0,2.2508]
[1720597666313,1.91756463,3098.9,3098.0,2.2508]
[1720597666481,1.91756463,3098.8,3098.0,2.2508]
[1720597666678,1.11840956,3098.7,3098.0,2.2508]
[1720597666892,0.41015372,3099.2,3098.0,2.2508]
[1720597666893,1.11840956,3099.1,3098.0,2.2508]
[1720597667097,1.91761258,3099.0,3098.0,2.2508]
[1720597667299,0.41015372,3099.2,3098.0,2.2508]
[1720597667300,1.91763181,3098.9,3098.1,0.22508]
[1720597667522,1.11840956,3098.8,3098.2,0.06454157]
[1720597667727,1.10153723,3099.4,3098.2,0.31858373]
[1720597668017,1.917518,3099.3,3098.3,0.06453592]
[1720597668221,1.917518,3099.2,3098.2,0.31857792]
[1720597668408,1.11825459,3099.1,3098.6,2.3957]
[1720597668613,3.0,3100.0,3098.7,0.06453035]
[1720597668904,1.91748784,3099.7,3098.7,0.06453035]
[1720597669104,2.15989858,3099.6,3098.6,2.3957]
[1720597669442,3.50661958,3099.8,3098.6,2.3957]
[1720597669443,1.91748784,3099.5,3098.6,2.3957]
[1720597669599,3.50661958,3099.8,3098.6,2.3957]
[1720597669600,1.91748784,3099.4,3098.6,2.3957]
[1720597669801,1.91748784,3099.3,3098.6,2.89457]
[1720597670037,1.11810303,3099.2,3098.6,2.89457]
[1720597670244,1.11810303,3099.7,3098.6,2.89457]
[1720597670401,2.07996843,3099.6,3098.6,2.89457]
[1720597670706,1.91749617,3099.5,3098.6,2.89457]
[1720597670913,1.91749617,3099.4,3098.6,2.89457]
[1720597671145,0.50661958,3099.8,3098.7,0.55520989]
[1720597671146,1.91749521,3099.3,3098.7,0.55520989]
[1720597671311,1.11810303,3099.2,3098.7,0.55520989]
[1720597671515,1.11810303,3099.7,3098.7,0.55520989]
[1720597671835,0.7993688,3099.6,3098.8,0.29509099]
[1720597672044,0.50661958,3099.8,3098.8,0.29509099]
[1720597672345,1.91751152,3099.7,3098.8,0.29509099]
[1720597672527,1.91751152,3099.6,3098.8,0.29509099]
[1720597672726,1.91751152,3099.5,3098.8,0.29509099]
[1720597673039,1.91751152,3099.4,3098.8,0.29509099]
[1720597673240,1.91751152,3099.3,3098.8,0.29509099]
[1720597673451,1.11810361,3099.2,3098.8,0.3596183]
[1720597673747,0.50661958,3099.8,3099.0,2.4706]
[1720597674043,1.91748867,3099.7,3099.1,0.06452087]
[1720597674219,1.11796896,3099.6,3099.1,0.06452087]
[1720597674414,0.50661958,3099.8,3099.2,0.25351209]
[1720597674613,1.11791799,3099.7,3099.3,0.06451637]
[1720597674818,1.11791799,3099.6,3099.3,0.06451637]
[1720597675026,0.50661958,3099.8,3099.3,2.65751637]
[1720597675238,0.50661958,3099.8,3099.4,2.65090285]
[1720597675454,0.50661958,3099.8,3099.5,0.06451007]
[1720597675607,1.31079085,3101.2,3099.5,0.06451007]
[1720597675806,0.3235,3101.3,3099.5,0.06451007]
[1720597676068,0.50650039,3100.2,3099.5,0.06451007]
[1720597676217,1.11774368,3100.1,3099.5,0.06451007]
[1720597676406,1.11774368,3100.0,3099.5,0.06451007]
[1720597676610,0.50650953,3100.1,3099.5,0.30694108]
[1720597676943,0.50650953,3100.1,3099.5,0.06451007]
[1720597679008,0.50650953,3100.1,3099.4,2.4243054]
[1720597679844,0.50650953,3100.1,3099.6,2.593]
[1720597680064,0.50650953,3100.1,3099.7,0.06450405]
[1720597680246,0.50650953,3100.1,3099.8,0.26575041]
[1720597682344,0.50650953,3100.1,3099.6,2.593]
[1720597682763,0.50650953,3100.1,3099.4,8.34150806]
[1720597683241,0.50650953,3100.1,3099.5,0.06450889]
[1720597683683,0.50650953,3100.1,3099.6,2.593]
[1720597684745,0.50650953,3100.1,3099.7,0.06450494]
[1720597684947,3.0,3101.3,3100.0,2.593]
[1720597685137,2.4785,3101.4,3100.1,0.06449782]
[1720597685138,2.46730506,3101.2,3100.1,0.06449782]
[1720597685337,2.4785,3101.4,3100.1,0.06449782]
[1720597685338,0.5064516,3100.6,3100.1,0.06449782]
[1720597685681,3.24785,3101.3,3100.1,0.06449782]
[1720597685843,1.91725652,3101.2,3100.1,0.06449782]
[1720597686039,0.50643823,3100.8,3100.1,0.06449782]
[1720597686290,1.11761607,3100.7,3100.1,0.06449782]
[1720597686576,0.50643823,3100.8,3100.1,0.06449782]
[1720597686779,1.11753243,3100.7,3100.1,0.06449782]
[1720597686942,0.50643823,3100.8,3100.1,0.06449782]
[1720597687284,1.1175321,3100.7,3100.2,0.26574978]
[1720597687492,0.50643823,3100.8,3100.3,0.06449395]
[1720597687712,1.11750856,3100.7,3100.4,2.593]
[1720597687865,0.50643823,3100.8,3100.5,0.06449399]
[1720597690721,0.50643823,3100.8,3100.4,2.593]
[1720597690898,0.50643823,3100.8,3100.5,0.32379284]
[1720597691301,0.50643823,3100.8,3100.6,2.4043]
[1720597691499,3.0,3101.7,3100.7,0.06449125]
[1720597691697,1.66741218,3101.6,3100.7,0.06449125]
[1720597691911,1.11741218,3101.5,3100.7,0.06449125]
[1720597692127,1.11741218,3101.4,3100.7,0.06449125]
[1720597692299,1.11741218,3101.3,3101.2,2.593]
[1720597692503,2.4555,3102.8,3101.3,2.3354]
[1720597692821,1.91646131,3102.7,3101.4,0.06447324]
[1720597693027,1.91646131,3102.7,3101.3,2.3354]
[1720597693028,1.91646131,3102.6,3101.3,2.3354]
[1720597693200,2.4555,3102.8,3101.3,2.3354]
[1720597693201,1.91649277,3102.5,3101.3,2.89271253]
[1720597693387,1.11717808,3102.4,3101.3,2.89271253]
[1720597693588,1.11717808,3102.3,3101.3,2.3354]
[1720597693787,1.11717808,3102.2,3101.3,2.3354]
[1720597694042,2.4572,3102.0,3100.8,2.2751]
[1720597694191,2.4572,3102.0,3100.4,2.2751]
[1720597694395,1.91679175,3101.9,3100.4,2.2751]
[1720597694746,0.43739918,3101.8,3100.4,2.50905906]
[1720597694902,0.55,3101.7,3100.4,2.50905906]
[1720597695117,1.11746612,3101.6,3100.4,2.50905906]
[1720597695345,1.66746612,3101.5,3100.4,2.2751]
[1720597695637,3.97240399,3101.4,3100.0,5.0724]
[1720597695850,1.11760399,3101.3,3100.0,5.60621505]
[1720597696051,0.55,3101.2,3100.0,5.60621505]
[1720597696207,1.11760399,3101.1,3100.0,5.60621505]
[1720597696404,1.11760399,3101.0,3100.1,0.56062151]
[1720597696610,1.11760399,3100.9,3100.1,0.56062151]
[1720597696840,1.11760399,3100.8,3100.1,0.56062151]
[1720597697049,1.11760399,3100.7,3100.1,0.56062151]
[1720597697345,1.11761008,3100.6,3100.2,0.56330215]
[1720597697551,0.4667604,3101.1,3100.0,5.0724]
[1720597697759,1.11761011,3101.0,3100.0,5.0724]
[1720597697915,1.11761011,3100.9,3100.0,5.0724]
[1720597698114,1.11761011,3100.8,3100.0,5.0724]
[1720597698428,0.4667604,3101.1,3100.0,5.0724]
[1720597698429,1.11761011,3100.7,3100.0,5.0724]
[1720597698625,1.11761011,3100.6,3100.0,5.0724]
[1720597698848,1.11761011,3101.0,3100.0,5.0724]
[1720597699017,1.33104716,3101.0,3100.0,5.0724]
[1720597699217,1.11761011,3100.9,3100.0,5.0724]
[1720597699513,1.11761011,3100.9,3099.6,10.53980806]
[1720597699514,0.55,3100.8,3099.6,10.53980806]
[1720597699740,1.28437112,3100.7,3099.6,10.53980806]
[1720597699942,1.11761011,3100.6,3099.6,10.53980806]
[1720597700251,1.11761011,3100.7,3099.7,0.06450641]
[1720597700425,1.11761011,3100.6,3100.0,2.593]
[1720597700630,0.33763702,3100.6,3100.0,2.593]
[1720597700830,0.33763702,3100.6,3100.1,0.06450244]
[1720597700831,1.11763206,3100.5,3100.1,0.06450244]
[1720597701153,0.33763702,3100.6,3100.1,0.06450244]
[1720597701315,1.11757918,3100.5,3100.1,0.06450244]
[1720597701510,0.50641035,3100.5,3100.1,0.06450244]
[1720597701815,0.50641035,3100.5,3100.2,0.29232527]
[1720597702566,0.50641035,3100.5,3100.3,2.54899931]
[1720597703069,0.50641035,3100.5,3100.4,1.93523]
[1720597703379,2.4887,3102.2,3100.6,2.4755]
[1720597703668,0.33759652,3101.0,3100.8,3.459]
[1720597703827,2.4224,3102.5,3100.9,2.53997886]
[1720597704034,0.50625856,3101.9,3101.0,0.59989789]
[1720597704260,0.50625856,3101.9,3101.1,0.0644761]
[1720597704261,1.11718093,3101.8,3101.1,0.0644761]
[1720597704432,0.50625856,3101.9,3101.1,0.3784635]
[1720597704631,1.11717482,3101.8,3101.1,0.3784635]
[1720597704829,0.50625856,3101.9,3101.1,0.3784635]
[1720597704830,1.11717482,3101.7,3101.1,0.3784635]
[1720597705036,1.11717482,3101.6,3101.1,0.3784635]
[1720597705249,1.1171659,3101.5,3101.1,0.3784635]
[1720597705455,0.50625856,3101.9,3101.1,0.3139874]
[1720597705653,1.11719759,3101.8,3101.2,0.06447608]
[1720597706371,1.11719759,3101.8,3101.3,0.0644767]
[1720597706574,1.11719759,3101.8,3101.1,0.3139874]
[1720597706734,1.11719759,3101.8,3101.2,0.29132063]
[1720597707369,0.50625856,3101.9,3101.0,0.59989789]
[1720597707574,1.11720051,3101.8,3101.0,0.59989789]
[1720597707741,1.11720051,3101.8,3100.9,2.53997604]
[1720597707742,1.11720051,3101.8,3100.9,2.4755]
[1720597709775,1.11720051,3101.8,3101.0,0.0644767]
[1720597710838,0.50625856,3101.9,3101.0,0.0644767]
[1720597711047,1.11713313,3101.8,3101.0,0.0644767]
[1720597711259,1.11713313,3101.8,3101.1,0.44748967]
[1720597712060,1.11713313,3101.8,3101.2,0.0644754]
[1720597712245,1.11713313,3101.8,3101.3,0.06447179]
[1720597712441,0.50625856,3101.9,3101.3,0.06447179]
[1720597712650,0.50625856,3101.9,3101.3,1.99914179]
[1720597713190,0.50625856,3101.9,3101.5,2.2509]
[1720597713357,0.50625856,3101.9,3101.6,0.06446834]
[1720597714291,0.50625856,3101.9,3101.6,3.52346834]
[1720597715861,0.50625856,3101.9,3101.6,3.459]
[1720597716063,0.50625856,3101.9,3101.6,3.52346371]
[1720597716390,0.50625856,3101.9,3101.7,0.77088837]
[1720597717096,0.50625856,3101.9,3101.8,0.06446534]
[1720597717396,0.50625856,3101.9,3101.8,1.93436]
[1720597717796,0.50625856,3101.9,3101.8,1.99882124]
[1720597718187,0.50625856,3101.9,3101.8,9.19328124]
[1720597718389,0.50625856,3101.9,3101.8,11.0855982]
[1720597718996,0.50625856,3101.9,3101.8,10.5355982]
[1720597720268,0.50625856,3101.9,3101.8,11.0855982]
[1720597720778,3.0,3103.5,3102.4,2.2991]
[1720597720979,3.0,3103.5,3102.5,0.06444334]
[1720597721328,0.50600904,3103.3,3102.6,0.58225433]
[1720597721471,0.50600904,3103.3,3102.7,0.06444006]
[1720597723299,0.50600904,3103.3,3102.8,0.06443917]
[1720597724087,0.50600904,3103.3,3102.7,0.25161743]
[1720597724312,0.50600904,3103.3,3102.6,0.64669397]
[1720597724818,0.50600904,3103.3,3102.7,2.59]
[1720597725009,0.50600904,3103.3,3102.8,0.0644395]
[1720597725409,0.50600904,3103.3,3102.7,2.59]
[1720597725612,0.50600904,3103.3,3102.9,0.06443945]
[1720597725798,0.50600904,3103.3,3102.9,0.3298834]
[1720597726002,0.50600904,3103.3,3102.9,0.26544395]
[1720597726891,0.50600904,3103.3,3102.8,0.06443897]
[1720597727090,0.50600904,3103.3,3102.7,2.59]
[1720597728824,0.33762154,3103.2,3102.7,2.59]
[1720597729322,0.33762154,3103.2,3102.8,0.0644446]
[1720597729534,0.33762154,3103.2,3102.9,0.26544446]
[1720597729827,0.33762154,3103.2,3103.0,0.06444066]
[1720597731820,0.33762154,3103.2,3103.1,2.3765]
[1720597735741,0.33762154,3103.2,3102.9,0.26544446]
[1720597735920,0.33762154,3103.2,3102.8,2.2923]
[1720597737717,0.33762154,3103.2,3102.6,0.58225433]
[1720597737917,1.1165632,3103.1,3102.4,2.59]
[1720597738210,0.33762154,3103.2,3102.4,2.59]
[1720597738415,1.11665782,3103.1,3102.4,2.59]
[1720597738623,1.11665782,3103.0,3102.4,2.59]
[1720597738815,0.33762154,3103.2,3102.4,2.59]
[1720597739136,1.11665817,3103.1,3102.4,2.65444434]
[1720597739303,1.11665817,3103.0,3102.5,0.26544443]
[1720597739503,1.11665817,3103.1,3102.5,0.26544443]
[1720597740646,0.33762154,3103.2,3102.5,0.26544443]
[1720597740844,1.11664677,3103.0,3102.1,5.98170806]
[1720597741051,1.11664677,3102.9,3102.1,5.98170806]
[1720597741259,0.33762154,3103.2,3102.1,5.98170806]
[1720597741260,1.11664677,3103.1,3102.2,0.59817081]
[1720597741401,1.11664677,3102.8,3102.2,0.59817081]
[1720597741597,1.11664677,3102.7,3102.3,0.65798789]
[1720597741917,1.11664677,3102.6,3102.4,2.59]
[1720597742236,0.33762154,3103.2,3102.5,0.32479879]
[1720597742444,1.11667233,3103.1,3102.6,0.0644472]
[1720597742600,0.33762154,3103.2,3102.5,0.32479879]
[1720597742601,1.11667233,3103.0,3102.5,0.32479879]
[1720597742800,1.11667233,3103.1,3102.6,0.53386988]
[1720597743437,0.33762154,3103.2,3102.6,0.53386988]
[1720597743438,1.1166722,3103.0,3102.6,0.53386988]
[1720597743723,0.33762154,3103.2,3102.6,0.53386988]
[1720597743925,1.116691,3103.1,3102.7,0.06444625]
[1720597744146,1.116691,3103.0,3102.7,0.06444625]
[1720597744437,0.33762154,3103.2,3102.6,0.53386988]
[1720597744639,1.11666103,3103.1,3102.7,0.06444652]
[1720597744844,1.11666103,3103.0,3102.7,0.06444652]
[1720597745147,1.11666103,3102.9,3102.6,0.53386988]
[1720597745304,1.11666103,3102.8,3102.7,0.06445047]
[1720597745502,1.11666103,3102.8,3102.7,2.65445047]
[1720597745701,0.50600904,3103.3,3102.7,2.65445047]
[1720597745702,0.50600904,3103.3,3102.7,7.52353738]
[1720597745929,1.11644008,3103.2,3102.9,1.93362]
[1720597746134,0.50600904,3103.3,3103.1,2.59]
[1720597746336,0.50600904,3103.3,3103.2,0.06443421]
[1720597746767,1.62238072,3103.3,3103.2,0.06443421]
[1720597749563,0.50600904,3103.3,3103.2,1.99791421]
[1720597749733,0.50600904,3103.3,3103.2,2.87627463]
[1720597750340,0.50600904,3103.3,3103.2,0.87836042]
[1720597750546,1.62236799,3103.3,3103.2,0.87836042]
[1720597751066,1.62236799,3103.3,3102.8,3.54029568]
[1720597751277,1.11635895,3103.2,3102.8,5.47400568]
[1720597751436,1.11635895,3103.2,3102.9,1.93365]
[1720597751634,1.11635895,3103.8,3103.0,0.54739457]
[1720597753283,1.11639386,3103.7,3103.0,2.48100457]
[1720597753449,1.11639386,3103.6,3103.1,0.06443424]
[1720597753650,0.3376157,3103.9,3103.2,0.25454388]
[1720597753651,1.11636574,3103.5,3103.2,0.25454388]
[1720597753848,1.11636574,3103.4,3103.2,0.25454388]
[1720597754056,0.3376157,3103.9,3103.3,0.29089781]
[1720597754344,1.11635251,3103.8,3103.4,0.06442928]
[1720597754563,1.11635251,3103.7,3103.4,0.06442928]
[1720597754736,0.3376157,3103.9,3103.4,0.36577638]
[1720597754737,1.11635251,3103.6,3103.4,0.36577638]
[1720597754938,1.11635251,3103.8,3103.4,0.36577638]
[1720597755672,0.80028209,3103.7,3103.4,0.36577638]
[1720597755881,1.11635251,3103.6,3103.4,0.3013471]
[1720597756082,1.11635251,3103.5,3103.4,0.3013471]
[1720597756675,1.11632278,3103.5,3103.4,0.3013471]
[1720597758465,1.91661856,3103.5,3103.4,0.3013471]
[1720597759754,0.3376157,3103.9,3103.4,0.3013471]
[1720597759952,1.91663554,3103.8,3103.5,0.25256449]
[1720597760179,1.91663554,3103.7,3103.5,0.25256449]
[1720597760362,2.4776,3105.0,3103.6,2.59]
[1720597760670,0.3375656,3104.3,3103.7,0.06441454]
[1720597760868,1.91659371,3104.2,3103.6,2.59]
[1720597761205,1.91659371,3104.1,3103.4,5.98170806]
[1720597761356,1.91659371,3104.0,3103.4,7.26122287]
[1720597761693,1.91659371,3103.9,3103.4,7.26122287]
[1720597761984,1.91659371,3103.8,3103.4,7.26122287]
[1720597762193,1.91659371,3103.7,3103.5,0.72612229]
[1720597762353,1.91659371,3103.6,3103.5,0.72612229]
[1720597762779,1.91659371,3103.6,3103.4,1.27951481]
[1720597762986,1.91676252,3103.5,3103.4,1.27951481]
[1720597763209,1.91676252,3103.5,3103.2,4.88]
[1720597763210,1.63727308,3103.5,3103.2,4.88]
[1720597763428,0.52092275,3103.4,3103.2,4.88]
[1720597763584,0.50585772,3104.1,3103.2,6.15952981]
[1720597763585,1.21907717,3104.0,3103.2,6.15952981]
[1720597763787,0.50585772,3104.1,3103.2,6.15952981]
[1720597763788,2.85628338,3103.9,3103.2,6.15952981]
[1720597764128,1.63720621,3103.8,3103.2,6.15952981]
[1720597764356,1.63720621,3103.7,3103.3,0.61595298]
[1720597764634,1.63720621,3103.6,3103.3,0.61595298]
[1720597764927,1.63720621,3103.5,3103.4,0.67754828]
[1720597766599,1.63723461,3103.5,3103.4,0.67754828]
[1720597770005,1.63733553,3103.5,3103.4,0.67754828]
[1720597773431,1.63735562,3103.5,3103.4,0.67754828]
[1720597773827,1.63742983,3103.5,3103.4,0.67754828]
[1720597776629,2.27063817,3103.9,3103.4,0.67754828]
[1720597776828,1.11632754,3103.5,3103.4,0.67754828]
[1720597777030,0.52102868,3103.5,3103.4,0.67754828]
[1720597777231,1.63735622,3103.7,3103.4,0.67754828]
[1720597777443,1.63735622,3103.6,3103.4,2.61085828]
[1720597777647,1.63735622,3103.5,3103.4,2.61085828]
[1720597778230,1.63734454,3103.5,3103.4,2.61085828]
[1720597778431,1.11632754,3103.5,3103.4,2.61085828]
[1720597778649,1.11632754,3103.5,3103.4,4.54421828]
[1720597778966,1.11632754,3103.5,3103.4,6.98191828]
[1720597779121,0.50585772,3104.1,3103.7,1.93314]
[1720597779463,1.63714102,3104.0,3103.8,0.25773661]
[1720597779623,1.63714102,3103.9,3103.8,0.193314]
[1720597780020,1.6371986,3103.9,3103.8,0.193314]
[1720597780249,1.6371986,3103.9,3103.6,1.93323]
[1720597780452,1.6371986,3103.8,3103.6,1.93323]
[1720597780635,1.6371986,3103.7,3103.6,2.43807783]
[1720597781169,1.6371986,3103.7,3103.6,0.50484783]
[1720597781456,1.6371986,3103.7,3103.4,2.61087828]
[1720597781457,1.63740607,3103.7,3103.4,2.61087828]
[1720597781615,1.63740607,3103.6,3103.4,2.61087828]
[1720597781816,1.63740607,3103.5,3103.4,2.61087828]
[1720597782348,1.63740607,3103.5,3103.4,0.67754828]
[1720597783366,0.50585772,3104.1,3103.4,0.67754828]
[1720597783664,3.04929588,3104.0,3103.4,0.67754828]
[1720597783867,1.63743177,3103.9,3103.4,0.67754828]
[1720597784048,1.63743177,3103.8,3103.4,0.67754828]
[1720597784223,1.63743177,3103.7,3103.5,0.66592563]
[1720597784473,1.63743177,3103.6,3103.5,0.66592563]
[1720597785624,1.63743177,3103.6,3103.3,1.93342]
[1720597785847,1.11630588,3103.5,3103.3,1.93342]
[1720597786061,1.11630588,3103.4,3103.3,1.93342]
[1720597786267,1.11630588,3103.4,3103.3,7.369026]
[1720597786594,0.50585772,3104.1,3103.5,1.93325]
[1720597787042,1.63738679,3104.0,3103.7,1.93317]
[1720597787361,1.63738679,3103.9,3103.8,0.19975959]
[1720597789461,1.63738679,3103.9,3103.7,1.93317]
[1720597789659,1.63738679,3103.8,3103.7,1.93317]
[1720597789863,1.63738679,3103.8,3103.5,1.93325]
[1720597790165,0.50585772,3104.1,3103.5,1.93329]
[1720597790378,1.63754543,3104.0,3103.6,0.193325]
[1720597790564,1.63754543,3103.9,3103.7,1.99754829]
[1720597790864,1.63754543,3103.8,3103.7,8.94134]
[1720597791163,1.63754543,3103.8,3103.7,9.835474]
[1720597793250,0.52124657,3103.8,3103.7,9.835474]
[1720597793551,0.50585772,3104.1,3103.9,1.93299]
[1720597793965,1.63733509,3104.0,3103.9,1.93299]
[1720597795251,1.63733509,3104.0,3103.9,3.86604]
[1720597795463,1.63733509,3104.0,3103.9,4.8495574]
[1720597796609,0.52124875,3104.0,3103.9,4.8495574]
[1720597796913,0.50585772,3104.1,3104.0,3.86596]
[1720597798698,1.02709179,3104.1,3104.0,1.93298]
[1720597798878,1.02709179,3104.1,3104.0,2.41793374]
[1720597800160,0.50585772,3104.1,3104.0,2.41793374]
[1720597800359,1.62191872,3104.1,3104.0,0.48495374]
[1720597800582,2.14317729,3104.1,3104.0,0.48495374]
[1720597800789,2.14317729,3104.1,3103.9,1.93304]
[1720597800985,0.52125857,3104.0,3103.9,1.93304]
[1720597801553,0.50585772,3104.1,3104.0,1.93298]
[1720597801798,0.50585772,3104.1,3104.0,2.69044027]
[1720597802004,0.50585772,3104.1,3104.0,2.62602437]
[1720597802305,1.02711092,3104.1,3104.0,2.62602437]
[1720597802510,1.02711092,3104.1,3104.0,0.69304437]
[1720597802656,2.1431683,3104.1,3104.0,0.69304437]
[1720597803055,1.02714257,3104.1,3104.0,0.69304437]
[1720597803338,2.14324618,3104.1,3104.0,0.69304437]
[1720597803920,1.02714257,3104.1,3104.0,0.69304437]
[1720597805104,0.50585772,3104.1,3104.0,0.69304437]
[1720597805324,0.50585772,3104.1,3104.0,2.62602437]
[1720597806807,0.50585772,3104.1,3104.0,4.55900437]
[1720597808705,1.6219186,3104.1,3104.0,0.69304437]
[1720597808906,2.14346938,3104.1,3104.0,0.69304437]
[1720597809411,2.14346666,3104.1,3104.0,0.69304437]
[1720597809819,2.14346666,3104.1,3104.0,2.62602437]
[1720597810023,1.62192464,3104.1,3104.0,2.62602437]
[1720597810222,0.50585772,3104.1,3104.0,2.62602437]
[1720597811324,0.50585772,3104.1,3104.0,4.55900437]
[1720597817263,0.50585772,3104.1,3103.1,2.17558446]
[1720597817264,1.6218803,3104.1,3103.4,8.33930806]
[1720597817567,1.6376014,3104.0,3103.4,7.91505806]
[1720597817776,1.6376014,3103.9,3103.4,7.91505806]
[1720597818008,0.52157882,3103.8,3103.4,8.89991187]
[1720597818262,1.6376014,3103.8,3103.4,6.96656187]
[1720597818467,1.6376014,3103.7,3103.4,6.96656187]
[1720597818680,1.6376014,3103.6,3103.4,6.96656187]
[1720597818964,1.11602258,3103.5,3103.4,6.96656187]
[1720597819139,0.52165042,3103.5,3103.4,6.96656187]
[1720597819344,2.2588,3103.8,3103.4,6.96656187]
[1720597819539,1.63794895,3103.7,3103.4,6.96656187]
[1720597819742,1.63794895,3103.6,3103.4,6.96656187]
[1720597819937,2.2588,3103.8,3103.4,5.98170806]
[1720597819938,1.63794895,3103.5,3103.4,5.98170806]
[1720597820675,1.63794895,3103.5,3103.1,2.59]
[1720597820959,1.63794895,3103.4,3103.2,0.259]
[1720597821267,1.63794895,3103.3,3103.1,2.59]
[1720597821471,1.63794895,3103.2,3103.1,2.59]
[1720597822344,0.52167341,3103.2,3103.1,3.44717081]
[1720597822572,0.50587315,3103.3,3103.1,3.44717081]
[1720597822757,0.52173891,3103.2,3103.1,3.44717081]
[1720597823169,1.63809344,3103.2,3102.9,5.98170806]
[1720597823483,1.63809344,3103.1,3102.5,5.98170806]
[1720597823697,1.63809344,3103.1,3102.2,5.98170806]
[1720597823698,3.0500126,3103.0,3102.2,5.98170806]
[1720597823856,3.5716054,3102.9,3102.2,5.98170806]
[1720597824186,1.6378854,3102.8,3102.2,5.98170806]
[1720597824343,2.2774,3102.6,3102.2,5.98170806]
[1720597824552,1.6382453,3102.5,3102.2,5.98170806]
[1720597824750,1.6382453,3102.4,3102.2,5.98170806]
[1720597824993,1.63830299,3102.3,3101.7,7.91611806]
[1720597825158,4.2113,3102.6,3101.7,7.91611806]
[1720597825159,4.2113,3102.6,3101.8,0.193441]
[1720597825370,2.75510466,3102.5,3101.8,0.193441]
[1720597825691,1.63829437,3102.4,3101.9,0.81095591]
[1720597825844,0.52145906,3102.3,3101.9,0.81095591]
[1720597826043,0.52144227,3102.2,3101.9,0.81095591]
[1720597826360,1.11681029,3102.5,3101.8,0.193441]
[1720597826572,3.57235197,3102.4,3101.8,0.193441]
[1720597826880,3.57241197,3102.3,3101.7,5.98170806]
[1720597827094,1.6384129,3102.2,3101.4,18.14170806]
[1720597827247,1.93423,3102.0,3101.4,5.98170806]
[1720597827764,0.52138607,3101.9,3101.4,5.98170806]
[1720597827963,0.52138607,3101.9,3101.4,6.57987887]
[1720597828176,1.93423,3102.0,3101.4,6.57987887]
[1720597829447,0.53280703,3102.4,3101.4,5.98170806]
[1720597829448,1.93443,3101.7,3101.4,5.98170806]
[1720597830196,1.93437,3101.8,3101.4,5.98170806]
[1720597830562,1.93442,3101.7,3101.4,5.98170806]
[1720597831652,1.93432,3101.9,3101.4,5.98170806]
[1720597831985,1.93442,3101.7,3101.4,5.98170806]
[1720597832954,1.93442,3101.7,3101.0,5.98170806]
[1720597833998,1.93424,3102.0,3101.0,7.91655806]
[1720597833999,1.93431,3101.9,3101.0,7.91655806]
[1720597834149,1.93411,3102.2,3101.2,1.93471]
[1720597834349,1.93418,3102.1,3101.3,0.06447215]
[1720597834691,1.93418,3102.1,3101.3,0.6596838]
[1720597837567,1.93418,3102.1,3101.3,0.72415622]
[1720597840059,1.11681029,3102.5,3101.4,2.3468]
[1720597840264,1.11681029,3102.5,3101.6,1.93445]
[1720597840265,3.05074029,3102.5,3101.6,1.93445]
[1720597840459,3.0,3102.4,3101.6,1.93445]
[1720597841205,1.93405,3102.3,3101.3,0.6596838]
[1720597841362,1.93423,3102.1,3101.3,0.6596838]
[1720597843109,4.23493,3102.1,3101.3,0.6596838]
[1720597843305,1.93424,3102.0,3101.3,0.6596838]
[1720597843880,2.3007,3102.1,3101.3,0.6596838]
[1720597844167,1.93414,3102.2,3101.4,0.25943938]
[1720597844717,1.93411,3102.2,3101.4,2.19402938]
[1720597846229,4.26553,3102.4,3101.4,2.19402938]
[1720597846376,2.2883,3102.7,3101.5,5.07667025]
[1720597846718,2.2883,3103.0,3101.5,5.36204157]
[1720597846919,1.93355,3103.1,3102.0,1.93423]
[1720597847082,1.93355,3103.1,3102.1,2.48665273]
[1720597847522,1.93361,3103.0,3102.2,1.9341]
[1720597847682,1.93361,3103.0,3102.2,2.56959828]
[1720597848325,1.93361,3103.0,3102.3,0.06445332]
[1720597848621,0.33761421,3102.9,3102.3,0.06445332]
[1720597848927,0.33761421,3102.9,3102.3,1.99849332]
[1720597849599,0.33761421,3102.9,3102.2,0.63549828]
[1720597849795,2.27129421,3102.9,3102.0,7.91593806]
[1720597849993,1.93399,3102.4,3102.0,5.98170806]
[1720597850494,1.11688534,3102.3,3102.0,5.98170806]
[1720597850694,1.93399,3102.4,3101.6,7.91618806]
[1720597850901,1.11692733,3102.3,3101.6,8.10963606]
[1720597851078,1.93399,3102.4,3101.6,8.10963606]
[1720597851282,1.11696155,3102.3,3101.6,8.10963606]
[1720597851485,1.11696155,3102.2,3101.6,6.17515606]
[1720597853248,1.11696155,3102.2,3101.7,0.81096961]
[1720597853591,3.05112155,3102.2,3101.6,5.98170806]
[1720597853797,3.05115155,3102.1,3101.6,5.98170806]
[1720597854117,1.11696155,3102.0,3101.6,5.98170806]
[1720597854698,1.11705715,3101.9,3101.6,5.98170806]
[1720597854900,1.11705715,3101.8,3101.6,5.98170806]
[1720597855131,1.11705715,3101.7,3101.6,5.98170806]
[1720597856900,1.11705715,3101.7,3101.1,2.59]
[1720597857102,1.11705715,3101.6,3101.1,3.584154]
[1720597857402,1.93437,3101.8,3101.1,3.584154]
[1720597857403,1.11705715,3101.7,3101.1,0.994154]
[1720597857623,3.05153715,3101.6,3101.0,5.98170806]
[1720597857819,1.11705715,3101.5,3101.0,5.98170806]
[1720597858114,1.93448,3101.6,3101.1,0.83984081]
[1720597858312,1.11714442,3101.5,3101.1,0.83984081]
[1720597858518,1.93448,3101.6,3101.1,0.83984081]
[1720597858729,1.11714273,3101.5,3101.1,0.83984081]
[1720597859101,1.11714273,3101.5,3101.2,0.68215489]
[1720597859731,1.11714273,3101.5,3101.3,0.06448202]
[1720597859932,1.11613169,3101.9,3101.3,0.06447558]
[1720597860170,1.93428,3102.0,3101.3,0.06447558]
[1720597860383,1.93431,3101.9,3101.3,0.06447558]
[1720597860694,3.0,3102.1,3101.1,0.83984081]
[1720597860695,1.93436,3101.8,3101.1,0.83984081]
[1720597861966,1.93425,3102.0,3101.1,0.90431733]
[1720597862159,1.93425,3102.0,3101.2,0.88208754]
[1720597862365,1.93425,3102.0,3101.3,0.06447445]
[1720597862539,1.9343,3101.9,3101.3,0.06447445]
[1720597863176,1.93405,3102.3,3101.3,2.65447445]
[1720597863386,0.52079452,3102.2,3101.4,4.5834562]
[1720597863548,4.93399,3102.4,3101.5,0.06446776]
[1720597863748,1.93405,3102.3,3101.5,0.98172182]
[1720597863944,0.33763248,3102.1,3101.5,0.98172182]
[1720597864171,0.33763248,3102.1,3101.6,1.15468861]
[1720597864389,0.33763248,3102.1,3101.7,0.06446771]